{"text_format":"1","workbook":"xlsx","n_sheets":3,"sheets":["Formblatt Gewerbe","Formblatt Wohnen","Hilfstabelle Stellplatzsatzung"],"not_rendered":{"charts":0,"images":0,"macros":1,"external_links":0,"defined_names":2,"comments":1,"pivot_tables":0},"unopened":[],"bounds":{"document_bytes":16777216,"sheet_cells":100000,"rows_first":2000,"rows_last":500,"rows_between":2000,"halvings":0,"cell_chars":16384,"cell_head_chars":4096},"cells_cut":0,"cells_raw":0,"read":"whole","date_system":"1900"}

{"sheet":"Formblatt Gewerbe","index":0,"n_rows":87,"n_cols":15,"rows_kept":87,"cut":false,"hidden":false,"merged":[[22,0,22,4],[69,0,69,4],[15,0,15,1],[16,0,16,1],[27,0,27,5],[26,0,26,5],[24,0,24,4],[21,0,21,4],[19,0,19,2],[20,0,20,2],[34,0,34,3],[35,0,35,3],[59,0,59,5],[60,0,60,4],[63,0,63,5],[65,0,65,4],[66,0,66,4],[82,1,82,4],[84,1,84,4],[85,0,86,0],[85,5,86,5],[70,0,70,5],[75,0,75,5],[77,1,77,4],[80,1,80,4],[71,0,71,5],[73,0,73,4],[72,0,72,4],[67,0,67,4],[68,0,68,4],[62,0,62,5],[64,0,64,5],[54,1,54,3],[55,1,55,3],[56,1,56,3],[36,0,36,5],[42,0,42,4],[37,1,37,2],[44,2,44,3],[41,0,41,5],[52,0,53,0],[52,1,52,3],[53,1,53,3],[37,3,37,4],[38,0,38,5],[39,1,39,2],[39,3,39,4],[2,0,2,5],[3,0,3,1],[4,0,4,1],[5,0,5,1],[6,0,6,1],[7,0,7,1],[8,0,8,1],[9,0,9,4],[11,0,11,5],[14,0,14,1],[12,0,13,1],[12,2,12,4],[13,2,13,4]]}
["Mobilitätskonzepte bei gewerblichen Vorhaben - Formblatt"]
[]
["1. Anzahl Pkw-Stellplätze "]
["Art der Nutzung gem. Satzung",null,"Bezugsgröße gemäß Anlage 1 Stellplatzsatzung (Nutzfläche, Verkaufsfläche…)","Richtwert nach Satzung \n","Erklärung Richtwert \n(s. a. Hilfstabelle)","Anzahl notwendiger Pkw-Stellplätze nach Satzung"]
["2.1 Verwaltungs- und Bürogebäude allgemein",null,2000,{"$f":"IFERROR(VLOOKUP(A5,'Hilfstabelle Stellplatzsatzung'!A:D,2,FALSE),\"\")","v":40},{"$f":"IFERROR(VLOOKUP(A5,'Hilfstabelle Stellplatzsatzung'!A:E,3,FALSE),\"\")","v":"1 je 40 m² Nutzfläche"},{"$f":"IFERROR(C5/D5,\"\")","v":50},null,{"$f":"IFERROR(IF(VLOOKUP(A5,'Hilfstabelle Stellplatzsatzung'!A:D,4,FALSE)=0,\"\",VLOOKUP(A5,'Hilfstabelle Stellplatzsatzung'!A:D,4,FALSE)),\"\")","v":""}]
[null,null,null,{"$f":"IFERROR(VLOOKUP(A6,'Hilfstabelle Stellplatzsatzung'!A:D,2,FALSE),\"\")","v":""},{"$f":"IFERROR(VLOOKUP(A6,'Hilfstabelle Stellplatzsatzung'!A:E,3,FALSE),\"\")","v":""},{"$f":"IFERROR(C6/D6,\"\")","v":""},null,{"$f":"IFERROR(IF(VLOOKUP(A6,'Hilfstabelle Stellplatzsatzung'!A:D,4,FALSE)=0,\"\",VLOOKUP(A6,'Hilfstabelle Stellplatzsatzung'!A:D,4,FALSE)),\"\")","v":""}]
[null,null,null,{"$f":"IFERROR(VLOOKUP(A7,'Hilfstabelle Stellplatzsatzung'!A:D,2,FALSE),\"\")","v":""},{"$f":"IFERROR(VLOOKUP(A7,'Hilfstabelle Stellplatzsatzung'!A:E,3,FALSE),\"\")","v":""},{"$f":"IFERROR(C7/D7,\"\")","v":""},null,{"$f":"IFERROR(IF(VLOOKUP(A7,'Hilfstabelle Stellplatzsatzung'!A:D,4,FALSE)=0,\"\",VLOOKUP(A7,'Hilfstabelle Stellplatzsatzung'!A:D,4,FALSE)),\"\")","v":""}]
[null,null,null,{"$f":"IFERROR(VLOOKUP(A8,'Hilfstabelle Stellplatzsatzung'!A:D,2,FALSE),\"\")","v":""},{"$f":"IFERROR(VLOOKUP(A8,'Hilfstabelle Stellplatzsatzung'!A:E,3,FALSE),\"\")","v":""},{"$f":"IFERROR(C8/D8,\"\")","v":""},null,{"$f":"IFERROR(IF(VLOOKUP(A8,'Hilfstabelle Stellplatzsatzung'!A:D,4,FALSE)=0,\"\",VLOOKUP(A8,'Hilfstabelle Stellplatzsatzung'!A:D,4,FALSE)),\"\")","v":""}]
[null,null,null,{"$f":"IFERROR(VLOOKUP(A9,'Hilfstabelle Stellplatzsatzung'!A:D,2,FALSE),\"\")","v":""},{"$f":"IFERROR(VLOOKUP(A9,'Hilfstabelle Stellplatzsatzung'!A:E,3,FALSE),\"\")","v":""},null,null,{"$f":"IFERROR(IF(VLOOKUP(A9,'Hilfstabelle Stellplatzsatzung'!A:D,4,FALSE)=0,\"\",VLOOKUP(A9,'Hilfstabelle Stellplatzsatzung'!A:D,4,FALSE)),\"\")","v":""}]
["Summe:",null,null,null,null,{"$f":"ROUND(SUM(F5:F9),0)","v":50}]
[]
["2. Reduzierung von Stellplätzen"]
["2.1 Lage des Vorhabens",null,"Gebietszone 1 \"Innenstadt und Innenstadtrandlage\"",null,null,false,null,{"$f":"IF(OR(AND(F13=TRUE,F14=TRUE),AND(F13=FALSE,F14=FALSE)),\"Es ist zwingend ein Haken bei Lage des Vorhabens zu setzen\",\"\")","v":""}]
[null,null,"Gebietszone 2 \"übriges Stadtgebiet\"",null,null,true]
["2.2 Reduzierung bei gewerblichen Vorhaben",null,null,"Reduzierungsfaktor","Anzahl reduzierter Pkw-Stellplätze","Anzahl Pkw-Stellplätze nach Reduzierung"]
["Flächenrelevante Maßnahmen",null,null,0.2,{"$f":"ROUND(F10*0.2,0)","v":10},{"$f":"F10-E16","v":40}]
["zusätzliche Reduzierung durch ergänzende betriebliche Maßnahmen",null,null,{"$f":"IF(H17=TRUE, \"20%\",\"\")","v":""},{"$f":"ROUND(IF(H17=TRUE,F10*0.2,0),0)","v":0},{"$f":"IF(H17=TRUE,F16-E17,\"\")","v":""},null,false]
[null,"Anzahl potenziell eingesparter Pkw-Stellplätze",null,null,{"$f":"SUM(E16:E17)","v":10}]
[]
["2.3. Anzahl notwendiger Pkw-Stellplätze nach Reduzierung gesamt ",null,null,null,null,{"$f":"F10-E18","v":40}]
["2.4. Anzahl errichteter Pkw-Stellplätze"]
["2.5. Anzahl tatsächlich eingesparter Pkw-Stellplätze durch Mobilitätskonzept",null,null,null,null,{"$f":"IF(F21<F20,E18,ROUND(F10-F21,0))","v":10}]
["2.6. Eingesparter Ablösebetrag Pkw-Stellplätze",null,null,null,null,{"$f":"_xlfn.IFS(AND(F13=TRUE,F14=FALSE),F22*8840,AND(F13=FALSE,F14=TRUE),F22*5480,AND(F13=TRUE,F14=TRUE),\"Fehler unter Pkt. 2.1\",AND(F13=FALSE,F14=FALSE),\"Fehler unter Pkt. 2.1\")","v":54800}]
[]
["2.7. Eingesparte Fläche als Grundlage zur Berechnung der Fläche für das Mobilitätskonzept \n(Äquivalent 12,5 qm je eingespartem Pkw-Stellplatz)",null,null,null,null,{"$f":"F22*12.5","v":125}]
[]
["3. Fahrradabstellplätze"]
["3.1. Anzahl Fahrradabstellplätze "]
["Art der Nutzung gemäß Satzung","Bezugsgröße gemäß Anlage 1 Stellplatzsatzung (Nutzfläche, Verkaufsfläche…)","Richtwert nach Satzung","Erklärung Richtwert \n(s. a. Hilfstabelle)","Anzahl notwendiger Fahrradabstellplätze nach Satzung","Anzahl notwendiger Fahrradabstellplätze mit Konzept (+ 10%)"]
[{"$f":"IF(ISBLANK(A5),\"\",A5)","v":"2.1 Verwaltungs- und Bürogebäude allgemein"},{"$f":"IF(ISBLANK(C5),\"\",C5)","v":2000},{"$f":"IFERROR(VLOOKUP(A30,'Hilfstabelle Stellplatzsatzung'!A:G,5,FALSE),\"\")","v":40},{"$f":"IFERROR(VLOOKUP(A30,'Hilfstabelle Stellplatzsatzung'!A:G,6,FALSE),\"\")","v":"1 je 40 m² Nutzfläche"},{"$f":"IFERROR(B30/C30,\"\")","v":50},null,null,{"$f":"IFERROR(IF(VLOOKUP(A30,'Hilfstabelle Stellplatzsatzung'!A:G,7,FALSE)=0,\"\",VLOOKUP(A30,'Hilfstabelle Stellplatzsatzung'!A:G,7,FALSE)),\"\")","v":""}]
[{"$f":"IF(ISBLANK(A6),\"\",A6)","v":""},{"$f":"IF(ISBLANK(C6),\"\",C6)","v":""},{"$f":"IFERROR(VLOOKUP(A31,'Hilfstabelle Stellplatzsatzung'!A:G,5,FALSE),\"\")","v":""},{"$f":"IFERROR(VLOOKUP(A31,'Hilfstabelle Stellplatzsatzung'!A:G,6,FALSE),\"\")","v":""},{"$f":"IFERROR(B31/C31,\"\")","v":""},null,null,{"$f":"IFERROR(IF(VLOOKUP(A31,'Hilfstabelle Stellplatzsatzung'!A:G,7,FALSE)=0,\"\",VLOOKUP(A31,'Hilfstabelle Stellplatzsatzung'!A:G,7,FALSE)),\"\")","v":""}]
[{"$f":"IF(ISBLANK(A7),\"\",A7)","v":""},{"$f":"IF(ISBLANK(C7),\"\",C7)","v":""},{"$f":"IFERROR(VLOOKUP(A32,'Hilfstabelle Stellplatzsatzung'!A:G,5,FALSE),\"\")","v":""},{"$f":"IFERROR(VLOOKUP(A32,'Hilfstabelle Stellplatzsatzung'!A:G,6,FALSE),\"\")","v":""},{"$f":"IFERROR(B32/C32,\"\")","v":""},null,null,{"$f":"IFERROR(IF(VLOOKUP(A32,'Hilfstabelle Stellplatzsatzung'!A:G,7,FALSE)=0,\"\",VLOOKUP(A32,'Hilfstabelle Stellplatzsatzung'!A:G,7,FALSE)),\"\")","v":""}]
[{"$f":"IF(ISBLANK(A8),\"\",A8)","v":""},{"$f":"IF(ISBLANK(C8),\"\",C8)","v":""},{"$f":"IFERROR(VLOOKUP(A33,'Hilfstabelle Stellplatzsatzung'!A:G,5,FALSE),\"\")","v":""},{"$f":"IFERROR(VLOOKUP(A33,'Hilfstabelle Stellplatzsatzung'!A:G,6,FALSE),\"\")","v":""},{"$f":"IFERROR(B33/C33,\"\")","v":""},null,null,{"$f":"IFERROR(IF(VLOOKUP(A33,'Hilfstabelle Stellplatzsatzung'!A:G,7,FALSE)=0,\"\",VLOOKUP(A33,'Hilfstabelle Stellplatzsatzung'!A:G,7,FALSE)),\"\")","v":""}]
[null,null,{"$f":"IFERROR(VLOOKUP(A34,'Hilfstabelle Stellplatzsatzung'!A:G,5,FALSE),\"\")","v":""},{"$f":"IFERROR(VLOOKUP(A34,'Hilfstabelle Stellplatzsatzung'!A:G,6,FALSE),\"\")","v":""},null,null,null,{"$f":"IFERROR(IF(VLOOKUP(A34,'Hilfstabelle Stellplatzsatzung'!A:G,7,FALSE)=0,\"\",VLOOKUP(A34,'Hilfstabelle Stellplatzsatzung'!A:G,7,FALSE)),\"\")","v":""}]
["Anzahl notwendiger Fahrradabstellplätze nach Satzung",null,null,null,{"$f":"ROUND(SUM(E30:E34),0)","v":50}]
["Anzahl notwendiger Fahrradabstellplätze mit Konzept (+ 10%)",null,null,null,null,{"$f":"ROUND(E35*0.1+E35,0)","v":55}]
["3.2. Anzahl Abstellplätze für Lastenräder"]
[null,"Anzahl notwendiger Stellplätze für Lastenräder",null,"10 % der Fahrradabstellplätze sind entsprechend zu dimensionieren",null,{"$f":"F36*0.1","v":5.5}]
["3.3. Überdachung von Fahrradabstellplätzen"]
[null,"Anzahl überdachter Fahrradabstellplätze",null,"50% der Fahrradabstellplätze sind zu überdachen (respetive im Gebäude unterzubringen)",null,{"$f":"F36*0.5","v":27.5}]
[]
[" 4. Flächenrelevante Maßnahmen\n(Die Auswahl der Elemente muss individuell in einem Konzeptpapier begründet werden.)"]
["4.1. Fläche Soll für das  Mobilitätskonzept in qm (10% der eingesparten Fläche, siehe unter 2.5., min. 20 qm)",null,null,null,null,{"$f":"IF(O43<20,20,O43)","v":20},null,null,null,null,null,null,null,null,{"$f":"F25*0.1","v":12.5}]
[null,null,null,null,"tatsächliche Fläche","tatsächliche Anzahl (plausible Erläuterung notwendig)"]
["4.1.Carsharing",null,"10 % der eingesparten Pkw-Stellplätze (mind. 1)"]
[]
[null,null,"Flächenäquivalent\nin m2/Stellplatz","Anzahl bereitgestellter Elemente","Fläche Ist\nin m2",null,null,false]
["4.2. Bikesharing:\n","Lastenpedelec / E-Trike/E-Vespa",4]
[null,"Lastenfahrräder",4,null,null,null,null,true]
[null,"Fahrradanhänger",2]
[null,"Pedelec",1.5]
[null,"Kickroller",0.5]
["4.2. Fahrradförderung","Duschen/Umkleiden/Trockenräume (mindestens je 1)"]
[null,"Fahrradreparaturbaum/ -Werkstatt (mindestens 1)"]
["4.3. Information und Kommunikaion","Info-Steele (mindestens 1)"]
["4.4. Lösungen für privaten Lieferverkehr","z.B. Paketzustellung, Paketaufgabe (Paketboxen etc.) zur Nutzung durch die Beschäftigten"]
["4.5. sonstige flächenrelevante Elemente"]
[null,null,null,null,"Fläche IST in qm"]
[null,null,null,null,{"$f":"SUM(E53:E57)","v":0},null,null,{"$f":"IF(E59<ROUND(F43,0), \"Fläche IST muss mindestens Fläche SOLL entsprechen (siehe Pkt. 4.1)\", \"\")","v":"Fläche IST muss mindestens Fläche SOLL entsprechen (siehe Pkt. 4.1)"}]
["4.6. zusätzlich Anforderung an das Mobilitätskonzept für flächenrelevante Maßnahmen"]
["Beschreibung zu Reparatur und Wartung"]
[]
["5. Ergänzende betriebliche Maßnahmen "]
["Beschreibung betrieblicher Mobilitätselemente wie regelmäßige Radchecks für Mitarbeiter, professioneller Fahrradreparaturservice, Integration Car-und Bike-Sharing im Fuhrpark und für die Beschäftigten, Jobrad, Job-Ticket, Home-Office-Regelung, Ansprechpartner:in und Mobilitätsmanagement etc. (ggf. in gesondertem Konzeptpapier)"]
["5.1 Mögliche  Mobilitätsangebote"]
["Den Mitarbeiter:innen wird die Möglichkeit geboten, an einem Jobrad-System teilzunehmen, dadurch wird die Fahrradnutzung weiter gefördert. "]
["Mindestens einmal im Jahr (Frühling) finden Fahrradaktionstage statt. Dabei wird die Möglichkeit geboten, sein Fahrrad auf Fahrtüchtigkeit überprüfen sowie kleinere Mängle vor Ort beheben zu lassen. Tipss und Hinweise zum sicheren Fahren (Helmnutzung, richtig eingestellte Bremsen, das passende Rad etc.) runden die Veranstaltung ab."]
["Der betriebliche Fuhrpark kann nach Feierabend und an Wochenenden von den Mitarbeiter:innen auch privat genutzt werden. Für die Buchung/Reservierung wird ein interner Kalender zur Verfügung gestellt."]
["Ein/e Mitarbeiter:in oder Arbeitsgruppe nimmt sich dem Thema betriebliche Mobilität an (Mobilitätsbeauftragte im Betrieb) und steht allen Beschäftigten für Fragen und Anregungen zur Verfügung."]
[]
["Es müssen mindestens zwei der genannten Maßnahmen umgesetzt werden. Weitere, im Einzelfall beschriebene Maßnahmen sind nach Abstimmung möglich."]
["5.2 zusätzliche Anforderungen an das Mobilitätskonzept für ergänzende betriebliche Maßnahmen"]
["Beschreibung zu Buchung"]
["Regelmäßigen Teilnahme an Weiterbildungsangeboten zu Betrieblichen Mobilitätskonzepten (BMM)"]
[]
["6. Nachweis der Anforderungen an ein Mobilitätskonzept"]
["zum Bauantrag",null,null,null,null,"erfüllt"]
["6.1. Mobilitätskonzept","Plausible Darstellung des Konzeptes in Text, Bildern und Grafiken"]
["6.2. Organisation von Betrieb und Wartung","Angebot von externen Dienstleistern oder sonstiger verbindlicher Nachweis"]
["6.3. Investition","Darlegung von Investition und Betriebskosten über eine Dauer von 20 Jahren"]
["6.4. Zuordnung der Stellplätze","Stellplätze können lediglich Nutzungseinheiten zugeordnet werden\nbesondere Personenbezogene Nutzungsrechte sind ausgeschlossen (Mobilitätskonzept-bezogene Nutzungsrechte stellen eine Ausnahmen dar, z.B. für Fahrgemeinschaften oder Carsharing)"]
["zur Nutzungsaufnahme"]
["6.5. Information und Kommunikations-maßnahmen","Informationsbroschüren, Beratungsangebote, Events etc."]
["Evaluation"]
["6.6. Evaluation","Verpflichtung zur Darlegung vorhabenbezogener Daten, bzw. Verträgen mit Dienstleistern etc., die die Funktionalität des Mobilitätskonzeptes belegen, zunächst 1 Jahr nach Nutzungsaufnahme, dann alle drei Jahre. Es wird die Möglichkeit eingeräumt, bei negativem Evaluationsergebnis, die Mobilitätselemente mit geringer Nutzung zu tauschen gegen gleichwertige, die den Anforderungen der Mitarbeitenden eher entsprechen."]
["6.7. Sicherungs-maßnahmen bei negativem Evaluationsergebnis","nicht hergestellte Pkw-Stellplätze werden nachgerüstet",null,null,false,false]
[null,"nicht hergestellte Pkw-Stellplätze werden abgelöst",null,null,false]

{"sheet":"Formblatt Wohnen","index":1,"n_rows":118,"n_cols":15,"rows_kept":118,"cut":false,"hidden":false,"merged":[[36,0,36,4],[37,0,37,4],[52,0,52,1],[53,0,53,1],[53,2,53,4],[40,0,40,4],[42,0,42,5],[43,0,43,5],[44,0,44,1],[49,0,51,0],[48,0,48,1],[45,0,47,0],[38,0,38,4],[2,0,2,5],[14,0,14,5],[16,0,17,0],[17,1,17,2],[23,0,23,5],[19,0,20,0],[20,1,20,2],[22,0,22,5],[25,0,27,0],[32,0,32,1],[24,0,24,1],[28,0,28,1],[35,0,35,4],[29,0,31,0],[34,0,34,4],[106,0,106,5],[101,0,101,5],[102,0,102,4],[95,2,95,4],[96,2,96,4],[97,2,97,4],[98,2,98,4],[99,2,99,4],[103,0,104,0],[103,5,104,5],[103,1,104,4],[116,0,117,0],[116,5,117,5],[113,1,113,4],[108,1,108,4],[111,1,111,4],[116,1,116,3],[117,1,117,3],[115,1,115,4],[91,0,91,5],[93,1,93,3],[95,1,99,1],[84,3,84,4],[85,3,85,4],[86,3,86,4],[87,3,87,4],[88,3,88,4],[89,3,89,4],[90,3,90,4],[83,3,83,4],[74,0,74,5],[79,0,90,2],[78,0,78,5],[79,3,79,4],[76,0,76,2],[81,3,81,4],[55,0,55,4],[56,0,56,4],[57,0,57,4],[58,0,58,4],[80,3,80,4],[61,0,61,4],[63,0,63,5],[59,0,59,4],[71,2,72,4],[70,0,70,5],[73,0,73,5],[64,0,64,5],[68,0,68,3],[69,0,69,3],[71,0,72,1]]}
["Mobilitätskonzepte im Wohnungsbau - Formblatt"]
[]
["1. Anzahl Pkw-Stellplätze"]
["Größe der WE","Anzahl WE freifinanziert","Stellplatzschlüssel nach Wohnungsgröße","Anzahl notwendiger Pkw-Stellplätze nach Satzung"]
["< 35 qm",5,0.5,{"$f":"B5*C5","v":2.5}]
["> 35 qm",5,1,{"$f":"B6*C6","v":5}]
["Summe:",{"$f":"SUM(B5:B6)","v":10},null,{"$f":"ROUND(SUM(D5:D6),0)","v":8}]
["Größe der WE","Anzahl WE Wohnungsbau Sozial","Stellplatzschlüssel nach Wohnungsgröße","Anzahl notwendiger Pkw-Stellplätze nach Satzung","Pkw-Stellplätze nach Reduzierung von 20 % (Wohnungsbau Sozial)"]
["< 35 qm",5,0.5,{"$f":"B9*C9","v":2.5}]
["> 35 qm",5,1,{"$f":"B10*C10","v":5}]
["Summe:",{"$f":"SUM(B9:B10)","v":10},null,{"$f":"ROUND(SUM(D9:D10),0)","v":8},{"$f":"ROUND(D11-(D11*0.2),0)","v":6}]
[]
["Gesamt Anzahl WE",{"$f":"B11+B7","v":20}]
[]
["2. Reduzierung von Stellplätzen"]
[]
["Lage des Vorhabens","Gebietszone 1 \"Innenstadt und Innenstadtrandgebiete\"",null,null,null,false,null,{"$f":"IF(OR(AND(F17=TRUE,F18=TRUE),AND(F17=FALSE,F18=FALSE)),\"Es ist zwingend ein Haken bei Lage des Vorhabens zu setzen\",\"\")","v":""},null,null,null,"\n"]
[null,"Gebietszone 2 \"übriges Stadtgebiet\"",null,null,null,true]
[]
["Mobilitätskonzept","ohne Carsharing",null,null,null,false]
[null,"mit Carsharing",null,null,null,true]
[]
["2.1. Stellplatzreduzierung in Gebietszone 1 \"Innenstadt und Innenstadtrandgebiete\""]
["2.1.1. Berechnung der Reduzierung"]
["Reduzierung durch Mobilitätskonzept bei freifinanzierten Wohnungen",null,"Anzahl notwendiger Pkw-Stellplätze nach Satzung","Reduzierungsfaktor","Anzahl reduzierter Pkw-Stellplätze durch Mobilitätskonzept","Anzahl Pkw-Stellplätze nach Reduzierung "]
[null,"Mobilitätskonzept \nohne Carsharing",{"$f":"_xlfn.IFS(AND(F20=TRUE,F21=FALSE),D7,AND(F20=FALSE,F21=TRUE),\"\",AND(F20=TRUE,F21=TRUE),\"Fehler unter Pkt. 2\",AND(F20=FALSE,F21=FALSE),\"Fehler unter Pkt. 2\")","v":""},0.2,{"$f":"IFERROR(ROUND(C26*0.2,0),\"\")","v":""},{"$f":"IFERROR(C26-E26,\"\")","v":""}]
[null,"oder"]
[null,"Mobilitätskonzept\nmit Carsharing",{"$f":"_xlfn.IFS(AND(F21=TRUE,F20=FALSE),D7,AND(F21=FALSE,F20=TRUE),\"\",AND(F20=TRUE,F21=TRUE),\"Fehler unter Pkt. 2\",AND(F20=FALSE,F21=FALSE),\"Fehler unter Pkt. 2\")","v":8},0.4,{"$f":"IFERROR(ROUND(C28*0.4,0),\"\")","v":3},{"$f":"IFERROR(C28-E28,\"\")","v":5}]
["Reduzierung durch Mobilitätskonzept im Wohnungsbau Sozial",null,null,null,null,"Anzahl Pkw-Stellplätze nach Reduzierung "]
[null,"Mobilitätskonzept\nohne Carsharing",{"$f":"_xlfn.IFS(AND(F20=TRUE,F21=FALSE),D11,AND(F20=FALSE,F21=TRUE),\"\",AND(F20=TRUE,F21=TRUE),\"Fehler unter Pkt. 2\",AND(F20=FALSE,F21=FALSE),\"Fehler unter Pkt. 2\")","v":""},0.1,{"$f":"IFERROR(ROUND(C30*0.1,0),\"\")","v":""},{"$f":"IFERROR(C30-E30,\"\")","v":""}]
[null,"oder"]
[null,"Mobilitätskonzept \nmit Carsharing",{"$f":"_xlfn.IFS(AND(F21=TRUE,F20=FALSE),D11,AND(F21=FALSE,F20=TRUE),\"\",AND(F20=TRUE,F21=TRUE),\"Fehler unter Pkt. 2\",AND(F20=FALSE,F21=FALSE),\"Fehler unter Pkt. 2\")","v":8},0.2,{"$f":"IFERROR(ROUND(C32*0.2,0),\"\")","v":2},{"$f":"IFERROR(C32-E32,\"\")","v":6}]
["Anzahl potenziell eingesparter Pkw-Stellplätze durch Mobilitätskonzept (gesamt)",null,null,null,{"$f":"SUM(E26,E28,E30,E32)","v":5}]
[]
["2.1.2. Anzahl reduzierter Pkw-Stellplätze durch Wohnungsbau Sozial (s. Pkt. 1)",null,null,null,null,{"$f":"D11-E11","v":2}]
["2.1.3. Anzahl notwendiger Pkw-Stellplätze nach Reduzierung gesamt\n(durch Wohnungsbau Sozial und Mobilitätskonzept)",null,null,null,null,{"$f":"D7+E11-E33","v":9}]
["2.1.4. Anzahl errichteter Pkw-Stellplätze ",null,null,null,null,10]
["2.1.5. Anzahl tatsächlich eingesparter Pkw-Stellplätze durch Mobilitätskonzept",null,null,null,null,{"$f":"IF(F37<F36,E33,D7+E11-F37)","v":4}]
["2.1.6. Eingesparter Ablösebetrag Pkw-Stellplätze",null,null,null,null,{"$f":"IF(AND(F17=TRUE, F18=FALSE),F38*8840,\"\")","v":""}]
[]
["2.1.7. Eingesparte Fläche als Grundlage zur Berechnung der Fläche für das  Mobilitätskonzept \n(Äquivalent 12,5 qm je eingespartem Pkw-Stellplatz)",null,null,null,null,{"$f":"F38*12.5","v":50}]
[]
["2.2. Stellplatzreduzierung in Gebietszone 2 \"übriges Stadtgebiet\""]
["2.2.1. Berechnung der Reduzierung"]
["Reduzierung durch Mobilitätskonzept bei freifinanzierten Wohnungen",null,"Anzahl notwendiger Pkw-Stellplätze nach Satzung","Reduzierungsfaktor","Anzahl reduzierter Pkw-Stellplätze durch Mobilitätskonzept","Anzahl Pkw-Stellplätze nach Reduzierung "]
[null,"Mobilitätskonzept \nohne Carsharing",{"$f":"_xlfn.IFS(AND(F20=TRUE,F21=FALSE),D7,AND(F20=FALSE,F21=TRUE),\"\",AND(F20=TRUE,F21=TRUE),\"Fehler unter Pkt. 2\",AND(F20=FALSE,F21=FALSE),\"Fehler unter Pkt. 2\")","v":""},0.15,{"$f":"IFERROR(ROUND(C46*0.15,0),\"\")","v":""},{"$f":"IFERROR(C46-E46,\"\")","v":""}]
[null,"oder"]
[null,"Mobilitätskonzept \nmit Carsharing",{"$f":"_xlfn.IFS(AND(F21=TRUE,F20=FALSE),D7,AND(F21=FALSE,F20=TRUE),\"\",AND(F20=TRUE,F21=TRUE),\"Fehler unter Pkt. 2\",AND(F20=FALSE,F21=FALSE),\"Fehler unter Pkt. 2\")","v":8},0.3,{"$f":"IFERROR(ROUND(C48*0.3,0),\"\")","v":2},{"$f":"IFERROR(C48-E48,\"\")","v":6}]
["Reduzierung durch Mobilitätskonzept im Wohnungsbau Sozial",null,null,null,null,"Anzahl Pkw-Stellplätze nach Reduzierung"]
[null,"Mobilitätskonzept\nohne Carsharing",{"$f":"_xlfn.IFS(AND(F20=TRUE,F21=FALSE),D11,AND(F20=FALSE,F21=TRUE),\"\",AND(F20=TRUE,F21=TRUE),\"Fehler unter Pkt. 2\",AND(F20=FALSE,F21=FALSE),\"Fehler unter Pkt. 2\")","v":""},7.4999999999999997E-2,{"$f":"IFERROR(ROUND(C50*0.075,0),\"\")","v":""},{"$f":"IFERROR(C50-E50,\"\")","v":""}]
[null,"oder"]
[null,"Mobilitätskonzept \nmit Carsharing",{"$f":"_xlfn.IFS(AND(F21=TRUE,F20=FALSE),D11,AND(F21=FALSE,F20=TRUE),\"\",AND(F20=TRUE,F21=TRUE),\"Fehler unter Pkt. 2\",AND(F20=FALSE,F21=FALSE),\"Fehler unter Pkt. 2\")","v":8},0.15,{"$f":"IFERROR(ROUND(C52*0.15,0),\"\")","v":1},{"$f":"IFERROR(C52-E52,\"\")","v":7}]
["Anzahl potenziell eingesparter Pkw-Stellplätze durch Mobilitätskonzept (gesamt)",null,null,null,{"$f":"SUM(E46,E48,E50,E52)","v":3}]
["Erreichbarkeit von Nahversorgungseinrichtungen\n(fußläufige Entfernung maximal 600 m)",null,"Wird das Kriterium der Entfernung zur Nahversorgung nicht erreicht, ist zwingend ein Mobilitätskonzept mit Car-Sharing einzureichen."]
[]
["2.2.2. Anzahl reduzierter Pkw-Stellplätze durch Wohnungsbau Sozial (s. Pkt. 1)",null,null,null,null,{"$f":"D11-E11","v":2}]
["2.2.3. Anzahl notwendiger Pkw-Stellplätze nach Reduzierung gesamt\n(durch Wohnungsbau Sozial und Mobilitätskonzept)",null,null,null,null,{"$f":"D7+E11-E53","v":11}]
["2.2.4. Anzahl errichteter Pkw-Stellplätze"]
["2.2.5. Anzahl tatsächlich eingesparter Pkw-Stellplätze durch Mobilitätskonzept",null,null,null,null,{"$f":"IF(F58<F57,E53,D7+E11-F58)","v":3}]
["2.2.6 Eingesparter Ablösebetrag Pkw-Stellplätze",null,null,null,null,{"$f":"IF(AND(F17=FALSE, F18=TRUE),F59*5480,\"\")","v":16440}]
[]
["2.2.7. Eingesparte Fläche als Grundlage zur Berechnung der Fläche für das Mobilitätskonzept \n(Äquivavent 12,5 qm je eingespartem Pkw-Stellplatz)",null,null,null,null,{"$f":"F59*12.5","v":37.5}]
[]
["3. Fahrradabstellplätze"]
["3.1. Anzahl Fahrradabstellplätze "]
["Größe der einzelnen WE","Anzahl WE","Wohnfläche in m² \n(Summe)","Richtwert nach Satzung","Anzahl notwendiger Fahrradabstellplätze nach Satzung","Anzahl notwendiger Fahrradabstellplätze mit Konzept (+ 20%)"]
["< 35 m2 Wfl.",{"$f":"B5+B9","v":10},null,"1 je WE",{"$f":"B67*1","v":10}]
["> 35 m2 Wfl.",{"$f":"B6+B10","v":10},null,"1 je 35 qm Wfl.",{"$f":"ROUND(C68/35,0)","v":0}]
["Anzahl notwendiger Fahrradabstellplätze nach Satzung",null,null,null,{"$f":"E67+E68","v":10}]
["Anzahl notwendiger Fahrradabstellplätze mit Konzept (+ 20%)",null,null,null,null,{"$f":"E69+E69*0.2","v":12}]
["3.2 Anzahl Abstellplätze für Lastenräder"]
["Anzahl notwendiger Stellplätze für Lastenräder/Anhänger",null,"10 % der Fahrradabstellplätze sind als Stellplätze für Lastenräder/Anhänger zu dimensionieren",null,null,{"$f":"F70*0.1","v":1.2000000000000002}]
[]
["4. Mobilitätsangebote"]
["4.1. Fläche für Angebote zur gemeinschaftlichen Nutzung"]
[null,null,null,null,"Fläche Ist\nin m2","Fläche Soll\nin m2",null,null,null,null,null,"Hilfstabelle für F72"]
["Anforderung: 10 % der eingesparten Fläche (Pkt. 2.1.5/2.2.5) unter Beachtung: bis 50 WE mind. 20 qm, bis 150 WE mind. 40 qm, ab 150 WE mind. 60 qm",null,null,"Gesamt",null,{"$f":"_xlfn.IFS(AND(F17=TRUE,F18=FALSE),O77,AND(F18=TRUE,F17=FALSE),O78,AND(F18=TRUE,F17=TRUE),\"Fehler unter Pkt. 2\",AND(F18=FALSE,F17=FALSE),\"Fehler unter Pkt. 2\")","v":20},null,{"$f":"IF(E77<ROUND(F77,0), \"Fläche Ist muss mindestens der Fläche Soll entsprechen\", \"\")","v":"Fläche Ist muss mindestens der Fläche Soll entsprechen"},null,null,null,{"$f":"IF(F17=TRUE,F41,0)","v":0},{"$f":"L77*0.1","v":0},{"$f":"_xlfn.IFS(B13<=50,20,B13<=150,40,B13>150,60)","v":20},{"$f":"IF(M77>N77,M77,N77)","v":20}]
[null,null,null,null,null,null,null,null,null,null,null,{"$f":"IF(F18=TRUE,F62,0)","v":37.5},{"$f":"L78*0.1","v":3.75},{"$f":"_xlfn.IFS(B13<=50,20,B13<=150,40,B13>150,60)","v":20},{"$f":"IF(M78>N78,M78,N78)","v":20}]
["4.2. Umfang der Angebote zur gemeinschaftlichen Nutzung"]
["Die Auswahl der Sharing-Fahrzeuge muss individuell begründet werden.\n\nbis 50 WE mind ein Lastenrad\nab 50 WE mind zwei Lastenräder\nab 100 WE je 50 WE ein Lastenrad mehr\nmind. die Hälfte der Lastenräder mit Elektromotor (aufrunden)\n\nbis 100 WE mind eine zusätzliche Angebotseinheit\nab 100 WE je 50 WE eine weitere Angebotseinheit\n\nab 50 WE Angebot für Fahrradreparatur und Paket-Lieferungen",null,null,"Anzahl Wohneinheiten",null,{"$f":"B13","v":20}]
[null,null,null,"Element",null,"Anzahl bereitgestellter Einheiten"]
[null,null,null,"Lastenrad"]
[null,null,null,null,"davon mit E-Motor"]
[null,null,null,"Angebot für Fahrrad-Reparatur"]
[null,null,null,"Angebot für Paket-Lieferungen"]
[null,null,null,"Anhänger/Trolley (1 Einheit = 2 Stück)"]
[null,null,null,"Pedelec (1 Einheit = 2 Stück)"]
[null,null,null,"E-Roller"]
[null,null,null,"E-Tretroller (1 Einheit = 3 Stück)"]
[null,null,null,"digitale Informations-Tafel"]
[null,null,null,"Lade-Spinds"]
["….....bei Konzepten mit Carsharing zusätzlich"]
[null,null,null,null,"notwendige Anzahl","tatsächlich mit Pkw belegte Anzahl\n(min. 50 % der notwendigen Anzahl)",null,null,null,null,null,"Hilfstabelle für E89"]
["4.3. Carsharing","Carsharing-Stellplätze: 10 % der eingesparten Pkw-Stellplätze (mind. 1)",null,null,{"$f":"_xlfn.IFS(AND(F21=TRUE,F17=TRUE,F18=FALSE),M94,(AND(F21=TRUE,F18=TRUE,F17=FALSE)),M95,F21=FALSE,\"kein Carsharing\")","v":1},0,null,{"$f":"IF(OR(AND(E94>=2,E94/2>=F94),(AND(E94<=2,F94<1))),\"Bedingung unter Pkt. 4.3 nicht erfüllt. Bitte prüfen!\",\"\")","v":"Bedingung unter Pkt. 4.3 nicht erfüllt. Bitte prüfen!"},null,null,null,{"$f":"IF(AND(F21=TRUE,F17=TRUE,F18=FALSE),F38*0.1)","v":false},{"$f":"IF(L94>1,L94,1)","v":false}]
[null,null,null,null,null,null,null,null,null,null,null,{"$f":"IF(AND(F21=TRUE,F18=TRUE,F17=FALSE),F59*0.1)","v":0.30000000000000004},{"$f":"IF(L95>1,L95,1)","v":1}]
[null,"Carsharing-Fahrzeuge","werden durch Fremdfirma für einen offenen Nutzerkreis bereitgestellt",null,null,1]
[null,null,"werden durch Fremdfirma für einen geschlossenen Nutzerkreis bereitgestellt"]
[null,null,"werden vom Eigentümer selbst zur Verfügung gestellt"]
[null,null,"Plattform für privates Carsharing"]
[null,null,"es erfolgt eine Beteiligung am Carsharing im näheren Umfeld"]
[]
["5. Ergänzende optionale Angebote"]
["5.1. Beteiligung an einem öffentlichen Fahrradvermietsystem (\"Stadtrad\"); z.B. durch Bereitstellung von Flächen auf dem Grundstück; Ausgestaltung in Konzeptbeschreibung"]
["5.2. Sonstiges","bspw.: Quartierszentrale mit weiteren Portier-Dienstleistungen, Fahrradwartung und Mobilitätsmanagement, digitale Plattform, Website"]
[]
[]
["6. Nachweis der Anforderungen an ein Mobilitätskonzept "]
["zum Bauantrag",null,null,null,null,"erfüllt"]
["6.1. Mobilitätskonzept","Plausible Darstellung des Konzeptes in Text, Bildern und Grafiken"]
["6.2. Organisation von Betrieb und Wartung","Angebot von externen Dienstleistern oder sonstiger verbindlicher Nachweis"]
["6.3. Investition","Darlegung von Investition und Betriebskosten über eine Dauer von 20 Jahren"]
["6.4. Sicherung der Stellplätze","10 % der Pkw-Stellplätze werden nicht in Teileigentum überführt und nicht dauerhaft vermietet (dafür ist eine entsprechende grundbuchrechtliche Sicherung erforderlich!)"]
["zur Nutzungsaufnahme"]
["6.5. Information und Kommunikations-maßnahmen","Informationsbroschüren, Beratungsangebote, Events etc."]
["Evaluation"]
["6.6. Evaluation","Verpflichtung zur Darlegung vorhabenbezogener Daten, bzw. Verträgen mit Dienstleistern etc., die die Funktionalität des Mobilitätskonzeptes belegen, zunächst 1 Jahr nach Nutzungsaufnahme, dann alle drei Jahre. Es wird die Möglichkeit eingeräumt, bei negativem Evaluationsergebnis, die Mobilitätselemente mit geringer Nutzung zu tauschen gegen gleichwertige, die den Anforderungen der Bewohner:innen eher entsprechen."]
["6.7. Sicherungsmaßnahmen bei negativem Evaluationsergebnis","nicht hergestellte Pkw-Stellplätze werden nachgerüstet"]
[null,"nicht hergestellte Pkw-Stellplätze werden abgelöst"]

{"sheet":"Hilfstabelle Stellplatzsatzung","index":2,"n_rows":31,"n_cols":7,"rows_kept":31,"cut":false,"hidden":false,"merged":[]}
["Nr. und Nutzungsart ","Richtwert Stellplatz","Bedeutung Richtwert Stellplatz","Bemerkung für Stellplätze","Richtwert Fahrradstellplatz","Bedeutung Richtwert Fahrradstellplatz","Bemerkung für Fahrradstellplätze"]
[]
["2.1 Verwaltungs- und Bürogebäude allgemein",40,"1 je 40 m² Nutzfläche",null,40,"1 je 40 m² Nutzfläche"]
["2.2 Räume mit erheblichem Besucherverkehr (Schalter-, Abfertigungs-, oder Beratungsräume, Azrtpraxen u.ä.)",30,"1 je 30 m² Nutzfläche",null,30,"1 je 30 m² Nutzfläche"]
["3.1 Läden bis 400 m² Geschossfläche",40,"1 je 40 m² Verkaufsfläche",null,40,"1 je 40 m² Verkaufsfläche ","min. 1 je Laden, bei Notwendigkeit bitte in Zeile 31 manuell eintragen"]
["3.2 Läden über 400 m² Geschossfläche, Einkaufszentren, großflächiger Einzelshandel",20,"1 je 20 m² Verkaufsfläche",null,45,"1 je 45 m² Verkaufsfläche"]
["4.1 Gaststätten, Spielhallen / -casinos, Vereins- und Clubhäuser u.ä.",20,"1 je 20 m² Gastraum",null,10,"1 je 10 m² Gastraum"]
["4.2 Hotels, Pensionen",6,"1 je 6 Betten","bei 4.2 muss dazugehöriger Restaurantbetrieb zusätzlich ermittelt werden",20,"1 je 20 Betten","bei 4.2 muss dazugehöriger Restaurantbetrieb zusätzlich ermittelt werden"]
["4.3 Jugendherbergen",10,"1 je 10 Betten",null,7,"1 je 7 Betten"]
["5.1 Kultur- und Versammlungsstätten (z.B. Theater, Konzerthallen, Kino, Vortragssäle, Diskotheken)",10,"1 je 10 Sitzplätze",null,10,"1 je 10 Sitzplätze"]
["5.2 Kirchen und religiöse Einrichtungen",30,"1 je 30 Sitzplätze",null,20,"1 je 20 Sitzplätze"]
["6.1 Sportplätze",250,"1 je 250 m² Sportfläche","bei 6.1 bis 6.3 müssen Besucher (6.4) zusätzlich berücksichtigt werden",200,"1 je 200 m² Sportfläche"]
["6.2 Sporthallen",100,"1 je 100 m² Sportfläche",null,4,"0,25 je Kleiderablage"]
["6.3 Schwimmhallen, Fitnesscenter, Sauna, Solarium ",10,"1 je 10 Kleiderablagen",null,4,"0,25 je Kleiderablage"]
["6.4  zusätzlich für Besucher bei Nutzung \nentspr. 6.1-6.3",15,"1 je 15 Besucherplätze",null,15,"1 je 15 Besucherplätze"]
["6.5 Kegel- und Bowlingbahnen",0.5,"2 je Bahn",null,0.5,"2 je Bahn"]
["6.6 Wochenendhaus-/Kleingartenanlagen",3,"1 je 3 Gärten",null,0]
["6.7 Bootshäuser/Bootsliegeplätze",4,"1 je 4 Liegeplätze",null,4,"1 je 4 Liegeplätze"]
["7.1 Krankenhäuser, Kliniken, Kuranstalten u.ä.",10,"1 je 10 Betten",null,15,"1 je 15 Betten"]
["7.2 Pflegeheime",10,"1 je 10 Betten","mindestens 3, bei Notwendigkeit bitte in Zeile 9 manuell eintragen",30,"1 je 30 Betten","mindestens 3, bei Notwendigkeit bitte in Zeile 31 manuell eintragen"]
["8.1 Grundschulen",25,"1 je 25 Schüler",null,5,"1 je 5 Schüler"]
["8.2 Gesamt- und Regionalschulen, Gymnasien, Berufsschulen",25,"1 je 25 Schüler",null,2,"1 je 2 Schüler"]
["8.3 Förderschulen",25,"1 je 25 Schüler",null,10,"1 je 10 Schüler"]
["8.4 Fachschulen, Hochschulen",10,"1 je 10 Schüler/Studierende/Mitarbeiter",null,3,"1 je Schüler/Studierende/Mitarbeiter"]
["8.5 Kindertagesstätten",25,"1 je 25 Kinder",null,10,"1 je 10 Kitaplätze"]
["9.1a Handwerks-, Gewerbe- und Industriebetriebe",60,"1 je 60 m² Nutzfläche",null,5,"1 je 5 Beschäftigte"]
["9.1b Handwerks-, Gewerbe- und Industriebetriebe",3,"1 je 3 Beschäftigte",null,5,"1 je 5 Beschäftigte"]
["9.2a Lagerräume, Lagerplätze, Ausstellungs- und Verkaufsplätze",90,"1 je 90 m² Nutzfläche",null,5,"1 je 5 Beschäftigte"]
["9.2b Lagerräume, Lagerplätze, Ausstellungs- und Verkaufsplätze",3,"1 je 3 Beschäftigte",null,5,"1 je 5 Beschäftigte"]
["9.3  Einrichtungen des Kfz-Gewerbes \n(Werkstätten, Waschplätze, Pflegedienste) ",0.33,"3 je Pflege- oder Reparaturstand",null,5,"1 je 5 Beschäftigte"]
["10.1 Friedhöfe",2000,"1 je 2000 m² Grundstücksfläche","mindestens 10, bei Notwendigkeit bitte in Zeile 9 manuell eintragen",3000,"1 je 3000 m² Grundstücksfläche"]